fUSD/lending_fUSD_20240630
["ID","MTS","AMOUNT","RATE_DAILY","PERIOD"]
[330745608,1719753047489,-500.0,0.00013884,3]
[330745609,1719753047498,-500.0,0.00013884,3]
[330745610,1719753047507,-929.74,0.00013884,3]
[330745611,1719753047516,-500.0,0.00013884,3]
[330745612,1719753047527,-500.0,0.00013884,3]
[330745613,1719753047536,-1414.04,0.00013884,3]
[330745614,1719753047545,-500.0,0.00013884,3]
[330745615,1719753047554,-500.0,0.00013884,3]
[330745616,1719753047563,-500.0,0.00013884,3]
[330745617,1719753047572,-1105.59,0.00013884,3]
[330745618,1719753047581,-500.0,0.00013884,3]
[330745619,1719753047590,-752.69,0.00013884,3]
[330745620,1719753047599,-683.56,0.00013884,3]
[330745621,1719753047608,-919.54,0.00013884,3]
[330745622,1719753047617,-928.35922214,0.00013889,2]
[330745623,1719753047626,-1000.0,0.000139,2]
[330745624,1719753047635,-213.3051902,0.000139,2]
[330745625,1719753047645,-963.0,0.00013916,2]
[330745626,1719753047654,-500.0,0.00013917,3]
[330745627,1719753047663,-500.0,0.00013917,3]
[330745628,1719753047672,-544.11,0.00013917,3]
[330745629,1719753047681,-500.0,0.00013917,3]
[330745630,1719753047690,-500.0,0.00013917,3]
[330745631,1719753047700,-529.93,0.00013917,3]
[330745632,1719753047710,-659.87,0.00013917,3]
[330745633,1719753047719,-500.0,0.00013917,3]
[330745634,1719753047729,-500.0,0.00013917,3]
[330745635,1719753047738,-500.0,0.00013917,3]
[330745636,1719753047748,-500.0,0.00013917,3]
[330745637,1719753047762,-500.0,0.00013917,3]
[330745638,1719753047771,-500.0,0.00013917,3]
[330745639,1719753047781,-500.0,0.00013917,3]
[330745640,1719753047790,-617.1774375,0.00013917,3]
[330745641,1719753047801,-500.0,0.00013917,3]
[330745642,1719753047810,-500.0,0.00013917,3]
[330745643,1719753047820,-513.79,0.00013917,3]
[330745644,1719753047831,-500.0,0.00013917,3]
[330745645,1719753047840,-500.0,0.00013917,3]
[330745646,1719753047851,-500.0,0.00013917,3]
[330745647,1719753047860,-500.0,0.00013917,3]
[330745648,1719753047871,-500.0,0.00013917,3]
[330745649,1719753047881,-569.83,0.00013917,3]
[330745650,1719753047891,-500.0,0.00013917,3]
[330745651,1719753047902,-500.0,0.00013917,3]
[330745652,1719753047912,-500.0,0.00013917,3]
[330745653,1719753047922,-500.0,0.00013917,3]
[330745654,1719753047931,-500.0,0.00013917,3]
[330745655,1719753047941,-500.0,0.00013917,3]
[330745656,1719753047952,-500.0,0.00013917,3]
[330745657,1719753047961,-500.0,0.00013917,3]
[330745658,1719753047971,-500.0,0.00013917,3]
[330745659,1719753047983,-500.0,0.00013917,3]
[330745660,1719753047992,-500.0,0.00013917,3]
[330745661,1719753048002,-500.0,0.00013917,3]
[330745662,1719753048012,-500.0,0.00013917,3]
[330745663,1719753048021,-500.0,0.00013917,3]
[330745664,1719753048031,-500.0,0.00013917,3]
[330745665,1719753048041,-500.0,0.00013917,3]
[330745666,1719753048051,-500.0,0.00013917,3]
[330745667,1719753048063,-500.0,0.00013917,3]
[330745668,1719753048073,-500.0,0.00013917,3]
[330745669,1719753048083,-566.69758907,0.00013917,3]
[330745670,1719753048094,-500.0,0.00013917,3]
[330745671,1719753048103,-500.0,0.00013917,3]
[330745672,1719753048113,-500.0,0.00013917,3]
[330745673,1719753048123,-500.0,0.00013917,3]
[330745674,1719753048132,-500.0,0.00013917,3]
[330745675,1719753048144,-500.0,0.00013917,3]
[330745676,1719753048157,-500.0,0.00013917,3]
[330745677,1719753048167,-500.0,0.00013917,3]
[330745678,1719753048177,-500.0,0.00013917,3]
[330745679,1719753048186,-855.79,0.00013917,3]
[330745680,1719753048195,-500.0,0.00013917,3]
[330745681,1719753048206,-500.0,0.00013917,3]
[330745682,1719753048215,-500.0,0.00013917,3]
[330745683,1719753048224,-102.76143029,0.00013917,3]
[330745684,1719753048918,-703.73856971,0.00013917,3]
[330745685,1719753048928,-347.28301626,0.00013917,3]
[330745686,1719753049177,-155.0,0.00013472,2]
[330745687,1719753049189,-152.71698374,0.00013917,3]
[330745688,1719753049198,-817.68,0.00013917,3]
[330745689,1719753049209,-500.0,0.00013917,3]
[330745690,1719753049218,-500.0,0.00013917,3]
[330745691,1719753049228,-500.0,0.00013917,3]
[330745692,1719753049238,-500.0,0.00013917,3]
[330745693,1719753049248,-500.0,0.00013917,3]
[330745694,1719753049257,-500.0,0.00013917,3]
[330745695,1719753049266,-500.0,0.00013917,3]
[330745696,1719753049276,-547.27,0.00013917,3]
[330745697,1719753049286,-500.0,0.00013917,3]
[330745698,1719753049298,-500.0,0.00013917,3]
[330745699,1719753049309,-500.0,0.00013917,3]
[330745700,1719753049319,-771.89,0.00013917,3]
[330745701,1719753049328,-500.0,0.00013917,3]
[330745702,1719753049338,-664.7,0.00013917,3]
[330745703,1719753049347,-500.0,0.00013917,3]
[330745704,1719753049357,-500.0,0.00013917,3]
[330745705,1719753049367,-500.0,0.00013917,3]
[330745706,1719753049377,-618.07,0.00013917,3]
[330745707,1719753049387,-250.0,0.00013917,3]
[330745708,1719753049397,-500.0,0.00013917,3]
[330745709,1719753049406,-500.0,0.00013917,3]
[330745710,1719753049415,-500.0,0.00013917,3]
[330745711,1719753049425,-522.62,0.00013917,3]
[330745712,1719753049434,-500.0,0.00013917,3]
[330745713,1719753049443,-500.0,0.00013917,3]
[330745714,1719753049452,-500.0,0.00013917,3]
[330745715,1719753049461,-500.0,0.00013917,3]
[330745716,1719753049471,-500.0,0.00013917,3]
[330745717,1719753049480,-500.0,0.00013917,3]
[330745718,1719753049489,-500.0,0.00013917,3]
[330745719,1719753049499,-745.23,0.00013917,3]
[330745720,1719753049508,-500.0,0.00013917,3]
[330745721,1719753049518,-500.0,0.00013917,3]
[330745722,1719753049528,-692.38,0.00013917,3]
[330745723,1719753049538,-500.0,0.00013917,3]
[330745724,1719753049548,-500.0,0.00013917,3]
[330745725,1719753049558,-500.0,0.00013917,3]
[330745726,1719753049567,-500.0,0.00013917,3]
[330745727,1719753049576,-632.98,0.00013917,3]
[330745728,1719753049586,-500.0,0.00013917,3]
[330745729,1719753049596,-784.2042447,0.00013917,3]
[330745730,1719753049633,-144.6357553,0.00013917,3]
[330745731,1719753049643,-500.0,0.00013917,3]
[330745732,1719753049654,-500.0,0.00013917,3]
[330745733,1719753049664,-500.0,0.00013917,3]
[330745734,1719753049674,-192.76810876,0.00013917,3]
[330745735,1719753049683,-500.0,0.00013917,3]
[330745736,1719753049693,-500.0,0.00013917,3]
[330745737,1719753049702,-500.0,0.00013917,3]
[330745738,1719753049712,-500.0,0.00013917,3]
[330745739,1719753049722,-500.0,0.00013917,3]
[330745740,1719753049732,-500.0,0.00013917,3]
[330745741,1719753049741,-500.0,0.00013917,3]
[330745742,1719753049756,-500.0,0.00013917,3]
[330745743,1719753049765,-500.0,0.00013917,3]
[330745744,1719753049775,-595.60895969,0.00013917,3]
[330745745,1719753049791,-226.80104031,0.00013917,3]
[330745746,1719753049802,-118.69895967,0.00013917,3]
[330745747,1719753049814,-381.30104033,0.00013917,3]
[330745748,1719753049823,-652.96705467,0.00013917,3]
[330745749,1719753049838,-57.75294533,0.00013917,3]
[330745750,1719753049848,-500.0,0.00013917,3]
[330745751,1719753049857,-642.88,0.00013917,3]
[330745752,1719753049867,-500.0,0.00013917,3]
[330745753,1719753049877,-500.0,0.00013917,3]
[330745754,1719753049887,-500.0,0.00013917,3]
[330745755,1719753049896,-371.55461941,0.00013917,3]
[330745756,1719753049906,-723.01,0.00013917,3]
[330745757,1719753049916,-540.1,0.00013917,3]
[330745758,1719753049926,-500.0,0.00013917,3]
[330745759,1719753049936,-500.0,0.00013917,3]
[330745760,1719753049947,-500.0,0.00013917,3]
[330745761,1719753049959,-794.57,0.00013917,3]
[330745762,1719753049970,-500.0,0.00013917,3]
[330745763,1719753049983,-586.32,0.00013917,3]
[330745764,1719753049992,-500.0,0.00013917,3]
[330745765,1719753050002,-500.0,0.00013917,3]
[330745766,1719753050011,-523.44,0.00013917,3]
[330745767,1719753050021,-500.0,0.00013917,3]
[330745768,1719753050030,-500.0,0.00013917,3]
[330745769,1719753050040,-500.0,0.00013917,3]
[330745770,1719753050050,-324.82354842,0.00013917,3]
[330745771,1719753050060,-758.93,0.00013917,3]
[330745772,1719753050069,-641.96,0.00013917,3]
[330745773,1719753050080,-550.43480274,0.00013917,3]
[330745774,1719753050090,-500.0,0.00013917,3]
[330745775,1719753050099,-500.0,0.00013917,3]
[330745776,1719753050109,-594.18,0.00013917,3]
[330745777,1719753050119,-500.0,0.00013917,3]
[330745778,1719753050128,-564.85,0.00013917,3]
[330745779,1719753050139,-500.0,0.00013917,3]
[330745780,1719753050149,-500.0,0.00013917,3]
[330745781,1719753050159,-500.0,0.00013917,3]
[330745782,1719753050168,-500.0,0.00013917,3]
[330745783,1719753050177,-500.0,0.00013917,3]
[330745784,1719753050187,-500.0,0.00013917,3]
[330745785,1719753050196,-500.0,0.00013917,3]
[330745786,1719753050210,-500.0,0.00013917,3]
[330745787,1719753050219,-537.61,0.00013917,3]
[330745788,1719753050228,-528.9,0.00013917,3]
[330745789,1719753050237,-532.35,0.00013917,3]
[330745790,1719753050246,-500.0,0.00013917,3]
[330745791,1719753050255,-500.0,0.00013917,3]
[330745792,1719753050264,-500.0,0.00013917,3]
[330745793,1719753050273,-500.0,0.00013917,3]
[330745794,1719753050282,-700.48,0.00013917,3]
[330745795,1719753050291,-500.0,0.00013917,3]
[330745796,1719753050301,-500.0,0.00013917,3]
[330745797,1719753050310,-536.3,0.00013917,3]
[330745798,1719753050319,-549.63,0.00013917,3]
[330745799,1719753050329,-500.0,0.00013917,3]
[330745800,1719753050339,-500.0,0.00013917,3]
[330745801,1719753050348,-500.0,0.00013917,3]
[330745802,1719753050358,-500.0,0.00013917,3]
[330745803,1719753050367,-500.0,0.00013917,3]
[330745804,1719753050377,-500.0,0.00013917,3]
[330745805,1719753050387,-500.0,0.00013917,3]
[330745806,1719753050396,-500.0,0.00013917,3]
[330745807,1719753050406,-500.0,0.00013917,3]
[330745808,1719753050415,-551.0,0.00013917,3]
[330745809,1719753050425,-500.0,0.00013917,3]
[330745810,1719753050435,-1705.28,0.00013917,3]
[330745811,1719753050445,-592.17,0.00013917,3]
[330745812,1719753050458,-500.0,0.00013917,3]
[330745813,1719753050468,-500.0,0.00013917,3]
[330745814,1719753050478,-500.0,0.00013917,3]
[330745815,1719753050488,-659.36,0.00013917,3]
[330745816,1719753050497,-500.0,0.00013917,3]
[330745817,1719753050509,-580.25,0.00013917,3]
[330745818,1719753050519,-500.0,0.00013917,3]
[330745819,1719753050528,-500.0,0.00013917,3]
[330745820,1719753050538,-500.0,0.00013917,3]
[330745821,1719753050548,-500.0,0.00013917,3]
[330745822,1719753050557,-500.0,0.00013917,3]
[330745823,1719753050567,-500.0,0.00013917,3]
[330745824,1719753050577,-500.0,0.00013917,3]
[330745825,1719753050587,-500.0,0.00013917,3]
[330745826,1719753050596,-500.0,0.00013917,3]
[330745827,1719753050606,-966.15,0.00013917,3]
[330745828,1719753050616,-500.0,0.00013917,3]
[330745829,1719753050625,-500.0,0.00013917,3]
[330745830,1719753050634,-500.0,0.00013917,3]
[330745831,1719753050643,-952.57,0.00013917,3]
[330745832,1719753050652,-500.0,0.00013917,3]
[330745833,1719753050661,-500.0,0.00013917,3]
[330745834,1719753050670,-500.0,0.00013917,3]
[330745835,1719753050679,-565.6,0.00013917,3]
[330745836,1719753050688,-500.0,0.00013917,3]
[330745837,1719753050697,-500.0,0.00013917,3]
[330745838,1719753050707,-501.25,0.00013917,3]
[330745839,1719753050716,-500.0,0.00013917,3]
[330745840,1719753050725,-500.0,0.00013917,3]
[330745841,1719753050734,-554.12,0.00013917,3]
[330745842,1719753050743,-500.0,0.00013917,3]
[330745843,1719753050755,-505.47,0.00013917,3]
[330745844,1719753050764,-546.63,0.00013917,3]
[330745845,1719753050774,-500.0,0.00013917,3]
[330745846,1719753050783,-500.0,0.00013917,3]
[330745847,1719753050793,-500.0,0.00013917,3]
[330745848,1719753050803,-500.0,0.00013917,3]
[330745849,1719753050812,-500.0,0.00013917,3]
[330745850,1719753050821,-500.0,0.00013917,3]
[330745851,1719753050831,-500.0,0.00013917,3]
[330745852,1719753050843,-500.0,0.00013917,3]
[330745853,1719753050853,-500.0,0.00013917,3]
[330745854,1719753050863,-500.0,0.00013917,3]
[330745855,1719753050872,-340.62,0.00013917,3]
[330745856,1719753050882,-500.0,0.00013917,3]
[330745857,1719753050891,-409.56,0.00013917,3]
[330745858,1719753050901,-509.0,0.00013917,3]
[330745859,1719753050910,-516.41,0.00013917,3]
[330745860,1719753050919,-500.0,0.00013917,3]
[330745861,1719753050929,-500.0,0.00013917,3]
[330745862,1719753050939,-830.91,0.00013917,3]
[330745863,1719753050949,-500.0,0.00013917,3]
[330745864,1719753050959,-500.0,0.00013917,3]
[330745865,1719753050969,-725.67,0.00013917,3]
[330745866,1719753050979,-610.42,0.00013917,3]
[330745867,1719753050989,-500.0,0.00013917,3]
[330745868,1719753050999,-500.0,0.00013917,3]
[330745869,1719753051008,-500.0,0.00013917,3]
[330745870,1719753051019,-500.0,0.00013917,3]
[330745871,1719753051028,-500.0,0.00013917,3]
[330745872,1719753051038,-601.76,0.00013917,3]
[330745873,1719753051048,-500.0,0.00013917,3]
[330745874,1719753051057,-778.06,0.00013917,3]
[330745875,1719753051067,-500.0,0.00013917,3]
[330745876,1719753051077,-500.0,0.00013917,3]
[330745877,1719753051086,-500.0,0.00013917,3]
[330745878,1719753051096,-672.25,0.00013917,3]
[330745879,1719753051166,-500.0,0.00013917,3]
[330745880,1719753051176,-500.0,0.00013917,3]
[330745881,1719753051186,-500.0,0.00013917,3]
[330745882,1719753051195,-500.0,0.00013917,3]
[330745883,1719753051206,-666.03,0.00013917,3]
[330745884,1719753051215,-544.69512612,0.00013917,3]
[330745885,1719753051224,-500.0,0.00013917,3]
[330745886,1719753051234,-560.8,0.00013917,3]
[330745887,1719753051243,-962.4,0.00013917,3]
[330745888,1719753051252,-539.22,0.00013917,3]
[330745889,1719753051262,-500.0,0.00013917,3]
[330745890,1719753051271,-500.0,0.00013917,3]
[330745891,1719753051280,-500.0,0.00013917,3]
[330745892,1719753051290,-500.0,0.00013917,3]
[330745893,1719753051299,-500.0,0.00013917,3]
[330745894,1719753051308,-633.23,0.00013917,3]
[330745895,1719753051318,-500.0,0.00013917,3]
[330745896,1719753051327,-500.0,0.00013917,3]
[330745897,1719753051336,-575.51,0.00013917,3]
[330745898,1719753051346,-500.0,0.00013917,3]
[330745899,1719753051355,-500.0,0.00013917,3]
[330745900,1719753051365,-500.0,0.00013917,3]
[330745901,1719753051375,-500.0,0.00013917,3]
[330745902,1719753051384,-500.0,0.00013917,3]
[330745903,1719753051394,-500.0,0.00013917,3]
[330745904,1719753051403,-500.0,0.00013917,3]
[330745905,1719753051413,-500.0,0.00013917,3]
[330745906,1719753051423,-500.0,0.00013917,3]
[330745907,1719753051432,-500.0,0.00013917,3]
[330745908,1719753051442,-500.0,0.00013917,3]
[330745909,1719753051452,-500.0,0.00013917,3]
[330745910,1719753051463,-871.08,0.00013917,3]
[330745911,1719753051472,-746.32,0.00013917,3]
[330745912,1719753051482,-625.62,0.00013917,3]
[330745913,1719753051492,-500.0,0.00013917,3]
[330745914,1719753051502,-677.3,0.00013917,3]
[330745915,1719753051511,-500.0,0.00013917,3]
[330745916,1719753051521,-500.0,0.00013917,3]
[330745917,1719753051530,-500.0,0.00013917,3]
[330745918,1719753051540,-500.0,0.00013917,3]
[330745919,1719753051549,-498.497,0.00013917,3]
[330745920,1719753051559,-535.02,0.00013917,3]
[330745921,1719753051569,-500.0,0.00013917,3]
[330745922,1719753051578,-500.0,0.00013917,3]
[330745923,1719753051588,-318.62898942,0.00013917,3]
[330745924,1719753051597,-500.0,0.00013917,3]
[330745925,1719753051606,-500.0,0.00013917,3]
[330745926,1719753051616,-715.73,0.00013917,3]
[330745927,1719753051626,-500.0,0.00013917,3]
[330745928,1719753051636,-500.0,0.00013917,3]
[330745929,1719753051646,-500.0,0.00013917,3]
[330745930,1719753051655,-250.47153522,0.00013917,3]
[330745931,1719753051665,-500.0,0.00013917,3]
[330745932,1719753051674,-788.9,0.00013917,3]
[330745933,1719753051683,-500.0,0.00013917,3]
[330745934,1719753051693,-500.0,0.00013917,3]
[330745935,1719753051704,-500.0,0.00013917,3]
[330745936,1719753051714,-500.0,0.00013917,3]
[330745937,1719753051723,-500.0,0.00013917,3]
[330745938,1719753051733,-500.0,0.00013917,3]
[330745939,1719753051743,-582.56,0.00013917,3]
[330745940,1719753051756,-500.0,0.00013917,3]
[330745941,1719753051766,-574.26,0.00013917,3]
[330745942,1719753051776,-873.83,0.00013917,3]
[330745943,1719753051786,-500.0,0.00013917,3]
[330745944,1719753051795,-500.0,0.00013917,3]
[330745945,1719753051805,-500.0,0.00013917,3]
[330745946,1719753051815,-690.7,0.00013917,3]
[330745947,1719753051825,-500.0,0.00013917,3]
[330745948,1719753051835,-500.0,0.00013917,3]
[330745949,1719753051845,-764.15,0.00013917,3]
[330745950,1719753051855,-500.0,0.00013917,3]
[330745951,1719753051864,-500.0,0.00013917,3]
[330745952,1719753051873,-500.0,0.00013917,3]
[330745953,1719753051883,-989.52,0.00013917,3]
[330745954,1719753051892,-243.23001818,0.00013917,3]
[330745955,1719753051902,-500.0,0.00013917,3]
[330745956,1719753051912,-500.0,0.00013917,3]
[330745957,1719753051922,-500.0,0.00013917,3]
[330745958,1719753051932,-500.0,0.00013917,3]
[330745959,1719753051942,-500.0,0.00013917,3]
[330745960,1719753051954,-500.0,0.00013917,3]
[330745961,1719753051963,-500.0,0.00013917,3]
[330745962,1719753051972,-500.0,0.00013917,3]
[330745963,1719753051981,-500.0,0.00013917,3]
[330745964,1719753051991,-1542.71,0.00013917,3]
[330745965,1719753052000,-500.0,0.00013917,3]
[330745966,1719753052010,-565.85,0.00013917,3]
[330745967,1719753052019,-500.0,0.00013917,3]
[330745968,1719753052028,-500.0,0.00013917,3]
[330745969,1719753052038,-874.54,0.00013917,3]
[330745970,1719753052047,-500.0,0.00013917,3]
[330745971,1719753052056,-500.0,0.00013917,3]
[330745972,1719753052066,-500.0,0.00013917,3]
[330745973,1719753052077,-500.0,0.00013917,3]
[330745974,1719753052086,-551.96,0.00013917,3]
[330745975,1719753052096,-542.93,0.00013917,3]
[330745976,1719753052106,-577.14,0.00013917,3]
[330745977,1719753052115,-543.47,0.00013917,3]
[330745978,1719753052124,-500.0,0.00013917,3]
[330745979,1719753052134,-576.27,0.00013917,3]
[330745980,1719753052144,-500.0,0.00013917,3]
[330745981,1719753052153,-788.07,0.00013917,3]
[330745982,1719753052163,-500.0,0.00013917,3]
[330745983,1719753052172,-500.0,0.00013917,2]
[330745984,1719753052182,-500.0,0.00013917,3]
[330745985,1719753052191,-500.0,0.00013917,3]
[330745986,1719753052200,-500.0,0.00013917,3]
[330745987,1719753052212,-500.0,0.00013917,3]
[330745988,1719753052222,-500.0,0.00013917,3]
[330745989,1719753052231,-500.0,0.00013917,3]
[330745990,1719753052241,-500.0,0.00013917,3]
[330745991,1719753052250,-500.0,0.00013917,3]
[330745992,1719753052260,-500.0,0.00013917,3]
[330745993,1719753052269,-525.02,0.00013917,3]
[330745994,1719753052278,-500.0,0.00013917,3]
[330745995,1719753052288,-500.0,0.00013917,3]
[330745996,1719753052297,-500.0,0.00013917,3]
[330745997,1719753052306,-223.02,0.00013917,3]
[330745998,1719753052316,-750.17,0.00013917,3]
[330745999,1719753052325,-985.9,0.00013917,3]
[330746000,1719753052334,-500.0,0.00013917,3]
[330746001,1719753052344,-591.2,0.00013917,3]
[330746002,1719753052354,-500.0,0.00013917,3]
[330746003,1719753052363,-500.0,0.00013917,3]
[330746004,1719753052373,-500.0,0.00013917,3]
[330746005,1719753052383,-677.89,0.00013917,3]
[330746006,1719753052392,-260.17,0.00013917,3]
[330746007,1719753052402,-500.0,0.00013917,3]
[330746008,1719753052412,-500.0,0.00013917,3]
[330746009,1719753052421,-515.93,0.00013917,3]
[330746010,1719753052431,-500.0,0.00013917,3]
[330746011,1719753052440,-524.89,0.00013917,3]
[330746012,1719753052449,-500.0,0.00013917,3]
[330746013,1719753052461,-661.36,0.00013917,3]
[330746014,1719753052471,-675.6,0.00013917,3]
[330746015,1719753052480,-500.0,0.00013917,3]
[330746016,1719753052489,-867.77,0.00013917,3]
[330746017,1719753052498,-500.0,0.00013917,3]
[330746018,1719753052507,-500.0,0.00013917,3]
[330746019,1719753052516,-793.41,0.00013917,3]
[330746020,1719753052525,-500.0,0.00013917,3]
[330746021,1719753052534,-668.93,0.00013917,3]
[330746022,1719753052543,-500.0,0.00013917,3]
[330746023,1719753052553,-500.0,0.00013917,3]
[330746024,1719753052562,-500.0,0.00013917,3]
[330746025,1719753052572,-500.0,0.00013917,3]
[330746026,1719753052583,-500.0,0.00013917,3]
[330746027,1719753052592,-500.0,0.00013917,3]
[330746028,1719753052601,-538.25,0.00013917,3]
[330746029,1719753052611,-500.0,0.00013917,3]
[330746030,1719753052621,-500.0,0.00013917,3]
[330746031,1719753052631,-500.0,0.00013917,3]
[330746032,1719753052641,-500.0,0.00013917,3]
[330746033,1719753052651,-500.0,0.00013917,3]
[330746034,1719753052660,-667.81,0.00013917,3]
[330746035,1719753052669,-500.0,0.00013917,3]
[330746036,1719753052681,-641.56,0.00013917,3]
[330746037,1719753052690,-500.0,0.00013917,3]
[330746038,1719753052700,-500.0,0.00013917,3]
[330746039,1719753052711,-500.0,0.00013917,3]
[330746040,1719753052720,-500.0,0.00013917,3]
[330746041,1719753052729,-500.0,0.00013917,3]
[330746042,1719753052738,-928.56,0.00013917,3]
[330746043,1719753052747,-559.27,0.00013917,3]
[330746044,1719753052761,-515.25,0.00013917,3]
[330746045,1719753052770,-500.0,0.00013917,3]
[330746046,1719753052779,-511.62,0.00013917,3]
[330746047,1719753052788,-500.0,0.00013917,3]
[330746048,1719753052800,-582.35,0.00013917,3]
[330746049,1719753052809,-500.0,0.00013917,3]
[330746050,1719753052819,-500.0,0.00013917,3]
[330746051,1719753052833,-509.03,0.00013917,3]
[330746052,1719753052842,-1024.75,0.00013917,3]
[330746053,1719753052852,-500.0,0.00013917,3]
[330746054,1719753052861,-500.0,0.00013917,3]
[330746055,1719753052871,-500.0,0.00013917,3]
[330746056,1719753052879,-500.0,0.00013917,3]
[330746057,1719753052889,-865.61,0.00013917,3]
[330746058,1719753052898,-759.81,0.00013917,3]
[330746059,1719753052907,-862.04,0.00013917,3]
[330746060,1719753052917,-2634.55656122,0.00013922,2]
[330746061,1719753052927,-623.22,0.00013954,3]
[330746062,1719753052936,-3389.24,0.00013954,3]
[330746063,1719753052945,-500.0,0.00013954,3]
[330746064,1719753052956,-2093.89,0.00013954,3]
[330746065,1719753052965,-1444.09,0.00013954,3]
[330746066,1719753052975,-1014.59,0.00013954,3]
[330746067,1719753052984,-500.0,0.00013954,3]
[330746068,1719753052997,-686.17,0.00013954,3]
[330746069,1719753053006,-953.45,0.00013954,3]
[330746070,1719753053015,-777.4,0.00013954,3]
[330746071,1719753053025,-1186.36,0.00013954,3]
[330746072,1719753053034,-1491.42,0.00013954,3]
[330746073,1719753053043,-1194.15,0.00013954,3]
[330746074,1719753053053,-1118.26,0.00013954,3]
[330746075,1719753053063,-592.43,0.00013954,3]
[330746076,1719753053072,-829.89,0.00013954,3]
[330746077,1719753053082,-4705.82,0.00013954,3]
[330746078,1719753053091,-500.0,0.00013954,3]
[330746079,1719753053101,-500.0,0.00013956,3]
[330746080,1719753053111,-1289.81,0.00013956,3]
[330746081,1719753053120,-520.39,0.00013956,3]
[330746082,1719753053130,-160.0,0.00013971,2]
[330746083,1719753053141,-272.0,0.00013971,2]
[330746084,1719753053151,-500.0,0.00013984,3]
[330746085,1719753053160,-500.0,0.00013984,3]
[330746086,1719753053170,-500.0,0.00013984,3]
[330746087,1719753053179,-578.59,0.00013984,3]
[330746088,1719753053188,-500.0,0.00013984,3]
[330746089,1719753053198,-500.0,0.00013984,3]
[330746090,1719753053210,-500.0,0.00013984,3]
[330746091,1719753053219,-500.0,0.00013984,3]
[330746092,1719753053230,-500.0,0.00013984,3]
[330746093,1719753053240,-524.1,0.00013984,3]
[330746094,1719753053251,-500.0,0.00013984,3]
[330746095,1719753053261,-393.46474724,0.00013984,3]
[330746096,1719753053271,-648.87,0.00013984,3]
[330746097,1719753053281,-500.0,0.00013984,3]
[330746098,1719753053291,-500.0,0.00013984,3]
[330746099,1719753053301,-500.0,0.00013984,3]
[330746100,1719753053311,-500.0,0.00013984,3]
[330746101,1719753053320,-500.0,0.00013984,3]
[330746102,1719753053330,-500.0,0.00013984,3]
[330746103,1719753053339,-500.0,0.00013984,3]
[330746104,1719753053349,-500.0,0.00013984,3]
[330746105,1719753053358,-500.0,0.00013984,3]
[330746106,1719753053368,-500.0,0.00013984,3]
[330746107,1719753053377,-500.0,0.00013984,3]